Workbook

Sheet Data Entry
A2: AMPE & MCVE tool
A3: Source: AHDB
B5: YOUR DATA | H5: BASE DATA | N5: DATA USED IN CALCULATION
B6: leave blank if not available | H6: These figures will be used by the calculator | N6: This is what's going into the tool - a mix of your
H7: wherever your data is not provided | N7: data and base data to fill gaps
B8: Milk composition: | C8: AMPE | D8: MCVE | E8: Notes | H8: Milk composition: | I8: Combined | N8: Milk composition: | O8: AMPE | P8: MCVE | Q8: Input
B9: Fat | H9: Fat | I9: 0.041 | N9: Fat | O9: =IF(ISBLANK(C9)=TRUE,I9,C9) -> 0.041 | P9: =IF(ISBLANK(D9)=TRUE,I9,D9) -> 0.041 | Q9: =CONCATENATE(IF(ISBLANK(C9)=TRUE,"Base data","Your data")," / ",IF(ISBLANK(D9)=TRUE,"Base data","Your data")) -> Base data / Base data
B10: Protein | H10: Protein | I10: 0.0335 | N10: Protein | O10: =IF(ISBLANK(C10)=TRUE,I10,C10) -> 0.0335 | P10: =IF(ISBLANK(D10)=TRUE,I10,D10) -> 0.0335 | Q10: =CONCATENATE(IF(ISBLANK(C10)=TRUE,"Base data","Your data")," / ",IF(ISBLANK(D10)=TRUE,"Base data","Your data")) -> Base data / Base data | T10: RESULTS
B11: Solids Not Fat | E11: calculated if left blank | H11: Solids Not Fat | I11: =ROUND(I10/38.2%,4) -> 0.0877 | J11: calculated | N11: Solids Not Fat | O11: =IF(ISBLANK(C11)=TRUE,ROUND(O10/38.2%,4),C11) -> 0.0877 | P11: =IF(ISBLANK(D11)=TRUE,ROUND(P10/38.2%,4),D11) -> 0.0877 | Q11: =CONCATENATE(IF(ISBLANK(C11)=TRUE,"Calculated","Your data")," / ",IF(ISBLANK(D11)=TRUE,"Calculated","Your data")) -> Calculated / Calculated | T11: AMPE: | U11: ='AMPE calc'!K12 -> 28.72614078 | V11: ppl
H12: (3yr average figures used for composition) | T12: MCVE: | U12: ='MCVE calc'!K11 -> 31.3944916 | V12: ppl
B14: Costs (£/t product): | H14: Costs (£/t product): | I14: Combined | N14: Costs (£/t product):
B15: Butter | H15: Butter | I15: 244 | N15: Butter | O15: =IF(ISBLANK(C15)=TRUE,I15,C15) -> 244 | Q15: =IF(ISBLANK(C15)=TRUE,"Base data","Your data") -> Base data
B16: SMP | H16: SMP | I16: 365 | N16: SMP | O16: =IF(ISBLANK(C16)=TRUE,I16,C16) -> 365 | Q16: Base data | T16: AFTER PROFIT MARGIN
B17: BMP | H17: BMP | I17: 365 | N17: BMP | O17: =IF(ISBLANK(C17)=TRUE,I17,C17) -> 365 | Q17: Base data | T17: AMPE: | U17: =IF('AMPE calc'!L12>0,U11-'AMPE calc'!L12,"N.A.") -> N.A. | V17: ppl
B18: Cheddar | H18: Cheddar | I18: 330 | N18: Cheddar | O18: =IF(ISBLANK(D18)=TRUE,I18,D18) -> 330 | Q18: =IF(ISBLANK(D18)=TRUE,"Base data","Your data") -> Base data | T18: MCVE: | U18: =IF('MCVE calc'!L11>0,U12-'MCVE calc'!L11,"N.A.") -> N.A. | V18: ppl
B19: Whey Powder | H19: Whey Powder | I19: 341 | N19: Whey Powder | O19: =IF(ISBLANK(D19)=TRUE,I19,D19) -> 341 | Q19: =IF(ISBLANK(D19)=TRUE,"Base data","Your data") -> Base data
B20: Whey Butter | E20: Can be same as butter | H20: Whey Butter | I20: 244 | J20: Same as butter | N20: Whey Butter | O20: =IF(ISBLANK(D20)=TRUE,I20,D20) -> 244 | Q20: Base data
T22: FARM GATE PRICE
B23: Prices (£/tonne): | H23: Prices (£/tonne), 2020 average: | N23: Prices (£/tonne): | T23: AMPE: | U23: =IF(O54>0,U11-'AMPE calc'!L12-O54,"N.A.") -> N.A. | V23: ppl
B24: Butter | H24: Butter | I24: 2950 | N24: Butter | O24: =IF(ISBLANK(C24)=TRUE,I24,C24) -> 2950 | Q24: =IF(ISBLANK(C24)=TRUE,"Base data","Your data") -> Base data | T24: MCVE: | U24: =IF(O55>0,U12-'MCVE calc'!L11-O55,"N.A.") -> N.A. | V24: ppl
B25: SMP | H25: SMP | I25: 1963 | N25: SMP | O25: =IF(ISBLANK(C25)=TRUE,I25,C25) -> 1963 | Q25: Base data
B26: Lactose powder | H26: Lactose powder | I26: 850 | N26: Lactose powder | O26: =IF(ISBLANK(C26)=TRUE,I26,C26) -> 850 | Q26: Base data
B27: BMP | E27: calculated if left blank | H27: BMP | I27: =I25-103 -> 1860 | J27: Estimated using SMP price -103 | N27: BMP | O27: =IF(ISBLANK(C27)=TRUE,O25-103,C27) -> 1860 | Q27: =IF(ISBLANK(C27)=TRUE,"Calculated","Your data") -> Calculated
B28: Mild Cheddar | H28: Mild Cheddar | I28: 2903 | N28: Mild Cheddar | O28: =IF(ISBLANK(D28)=TRUE,I28,D28) -> 2903 | Q28: =IF(ISBLANK(D28)=TRUE,"Base data","Your data") -> Base data
B29: Whey powder | H29: Whey powder | I29: 666 | N29: Whey powder | O29: =IF(ISBLANK(D29)=TRUE,I29,D29) -> 666 | Q29: Base data
B30: Whey butter | E30: calculated if left blank | H30: Whey butter | I30: =I24-300 -> 2650 | J30: Estimated using butter price -300 | N30: Whey butter | O30: =IF(ISBLANK(D30)=TRUE,O24-300,D30) -> 2650 | Q30: =IF(ISBLANK(D30)=TRUE,"Calculated","Your data") -> Calculated
N31: Base data uses 2020 average prices
B33: Lactose addition to SMP (%): | H33: Lactose addition to SMP (%): | N33: Lactose addition to SMP (%):
B34: % of SMP by weight | H34: % of SMP by weight | I34: 0.085 | N34: % of SMP by weight | O34: =IF(ISBLANK(C34)=TRUE,I34,C34) -> 0.085 | Q34: =IF(ISBLANK(C34)=TRUE,"Base data","Your data") -> Base data
B37: Processing losses (%): | H37: Processing losses (%): | N37: Processing losses (%):
B38: Butter | H38: Butter | I38: 0.01 | N38: Butter | O38: =IF(ISBLANK(C38)=TRUE,I38,C38) -> 0.01 | Q38: =IF(ISBLANK(C38)=TRUE,"Base data","Your data") -> Base data
B39: SMP | H39: SMP | I39: 0.005 | N39: SMP | O39: =IF(ISBLANK(C39)=TRUE,I39,C39) -> 0.005 | Q39: Base data
B40: BMP | E40: calculated if left blank | H40: BMP | I40: =I39 -> 0.005 | J40: Same as SMP | N40: BMP | O40: =IF(ISBLANK(C40)=TRUE,O39,C40) -> 0.005 | Q40: =IF(ISBLANK(C40)=TRUE,"Calculated","Your data") -> Calculated
B41: Mild Cheddar | H41: Mild Cheddar | I41: 0.0075 | N41: Mild Cheddar | O41: =IF(ISBLANK(D41)=TRUE,I41,D41) -> 0.0075 | Q41: =IF(ISBLANK(D41)=TRUE,"Base data","Your data") -> Base data
B42: Whey powder | H42: Whey powder | I42: 0.01 | N42: Whey powder | O42: =IF(ISBLANK(D42)=TRUE,I42,D42) -> 0.01 | Q42: Base data
B45: Numbers below this point are optional and not included | H45: Numbers below this point are optional and not included | N45: Numbers below this point are optional and not included
B46: in standard AMPE/MCVE calculations | H46: in standard AMPE/MCVE calculations | N46: in standard AMPE/MCVE calculations
B48: Processor profit margin (as % of sales prices): | H48: Processor profit margin (ppl): | N48: Processor profit margin (as % of sales prices):
B49: AMPE | H49: AMPE | I49: 0 | N49: AMPE | O49: =IF(ISBLANK(C49)=TRUE,I49,C49) -> 0 | Q49: =IF(ISBLANK(C49)=TRUE,"Excluded","Your data") -> Excluded
B50: MCVE | H50: MCVE | I50: 0 | N50: MCVE | O50: =IF(ISBLANK(D50)=TRUE,I50,D50) -> 0 | Q50: =IF(ISBLANK(D50)=TRUE,"Excluded","Your data") -> Excluded
B53: Haulage cost from farm to factory (ppl): | H53: Haulage cost from farm to factory (ppl): | N53: Haulage cost from farm to factory (ppl):
B54: AMPE | H54: AMPE | I54: 0 | N54: AMPE | O54: =IF(ISBLANK(C54)=TRUE,I54,C54) -> 0 | Q54: =IF(ISBLANK(C54)=TRUE,"Excluded","Your data") -> Excluded
B55: MCVE | H55: MCVE | I55: 0 | N55: MCVE | O55: =IF(ISBLANK(D55)=TRUE,I55,D55) -> 0 | Q55: =IF(ISBLANK(D55)=TRUE,"Excluded","Your data") -> Excluded

Sheet Base costs (hidden)
A1: Proposed costs (£'s per tonne of product)
A2: UK | B2: Butter | C2: SMP | D2: BMP | E2: Cheddar | F2: Whey Powder
A3: Energy | B3: 43 | C3: 138 | D3: 138 | E3: 50 | F3: 134
A4: Labour | B4: 70 | C4: 70 | D4: 70 | E4: 75 | F4: 70
A5: Raw mat | B5: 21 | C5: 21 | D5: 21 | E5: 61 | F5: 21
A6: Chem, water, waste | B6: 10 | C6: 25 | D6: 25 | E6: 12 | F6: 25
A7: Maintenance | B7: 20 | C7: 25 | D7: 25 | E7: 25 | F7: 25
A8: Storage | B8: 20 | C8: 6 | D8: 6 | E8: 30 | F8: 6
A9: Depreciation | B9: 30 | C9: 50 | D9: 50 | E9: 42
A10: General/admin | B10: 30 | C10: 30 | D10: 30 | E10: 35 | F10: 60
A11: Total | B11: 244 | C11: 365 | D11: 365 | E11: 330 | F11: 341
C12: Excl. lactose cost
A14: Energy assumptions split:
A15: Electricity | B15: 0.5 | C15: 0.5 | D15: 0.5 | E15: 0.5 | F15: 0.3
A16: Gas | B16: 0.5 | C16: 0.5 | D16: 0.5 | E16: 0.5 | F16: 0.7
A18: Lactose addition | C18: 102 | D18: kg per tonne of powder
A19: Lactose powder addition | C19: 55.55668745 | D19: Now using monthly averages

Sheet AMPE calc (hidden)
A2: yield | F2: Costs | I2: prices & AMPE | L2: Profit margin
A3: Butter, SMP and BMP yield calculation | E3: Price £t | F3: Butter | G3: ='Data Entry'!O15 -> 244 | I3: AMPE Calculation | L3: ='Data Entry'!O49 -> 0
A4: Composition of milk | B4: Fat | C4: ='Data Entry'!O9 -> 0.041 | F4: BMP | G4: ='Data Entry'!O17 -> 365 | I4: Price £t | J4: Butter | K4: ='Data Entry'!O24 -> 2950 | L4: =K4*$L$3 -> 0
B5: Protein | C5: ='Data Entry'!O10 -> 0.0335 | F5: SMP (ex lactose) | G5: ='Data Entry'!O16 -> 365 | J5: SMP | K5: ='Data Entry'!O25 -> 1963 | L5: =K5*$L$3 -> 0
B6: Solids not fat | C6: ='Data Entry'!O11 -> 0.0877 | J6: Lactose | K6: ='Data Entry'!O26 -> 850 | L6: =K6*$L$3 -> 0
A7: Composition of cream | B7: Fat | C7: 0.4 | J7: BMP | K7: ='Data Entry'!O27 -> 1860 | L7: =K7*$L$3 -> 0
B8: Fat | C8: 0.815 | I8: components | J8: Butter | K8: =(K4-G3)*100/$D26 -> 13.59798995 | L8: =(L4)*100/$D26 -> 0
B9: Solids not fat | C9: 0.017 | J9: BMP | K9: =(K7-G4)*100/$D38 -> 0.7342829077 | L9: =(L7)*100/$D38 -> 0
A10: Composition of Buttermilk | B10: Fat | C10: 0.005 | J10: SMP | K10: =(K5-G5-K6*C33)*100/$D39 -> 14.39386792 | L10: =(L5)*100/$D39 -> 0
B11: Solids not fat | C11: =(1-C10)/(1-C4)*C6 -> 0.09099217935
B12: Total Solids | C12: =C11+C10 -> 0.09599217935 | I12: AMPE | K12: =SUM(K8:K10) -> 28.72614078 | L12: =SUM(L8:L10) -> 0
A13: BMP | B13: Total Solids | C13: 0.985
A14: Composition of SMP | B14: Total Solids | C14: 0.985
B15: Protein | C15: 0.34
A16: Composition of skim | B16: Solids not fat | C16: =C6/(1-C4) -> 0.09144942649
B17: Fat | C17: 0.0006
A18: Weight of milk | B18: kg/lit | C18: 1.02969
A19: Volume of milk | B19: kgs | C19: 100
A20: Kgs of cream | B20: kgs | C20: =C19*(C4-C17)/(C7-C17) -> 10.11517276 | D20: =C19*(C4-C17)/C7 -> 10.1
A21: kgs butter | B21: kgs | C21: =C20*(C7-C10)/(C8-C10) -> 4.932707704
A22: kgs buttermilk | B22: kgs | C22: =(C20-C21)*(1-C23) -> 5.130640405
A23: Loss | C23: ='Data Entry'!O38 -> 0.01
A24: kgs butter | B24: kgs | C24: =C21*(1-C23) -> 4.883380626
A25: 1 tonne butter requires | B25: kg milk | C25: =C19/C24*1000 -> 20477.61738
A26: 1 tonne butter requires | B26: litres milk | C26: =C25/C$18 -> 19887.16738 | D26: =ROUND(C26/100,0)*100 -> 19900 | E26: Rounded
A27: kgs of SMP and buttermilk | B27: kgs | C27: =C19-C21 -> 95.0672923
A28: Solids in SMP and buttermilk | B28: kgs | C28: =C19*(C6+C4)-C21*(C8+C9) -> 8.765987191
A29: Solids as % of volume | C29: =C28/C27 -> 0.0922082346
A30: Loss SMP | C30: ='Data Entry'!O39 -> 0.005
A31: Loss BMP | C31: ='Data Entry'!O40 -> 0.005
A32: Protein in SMP before std | B32: % | C32: =(C5/(1-C4+C17))/C29 -> 0.3786037058 | E32: =C32*(1-C33) -> 0.3464223908
A33: Addition of lactose powder | B33: % | C33: ='Data Entry'!O34 -> 0.085
A34: Cost of lactose powder | B34: £/t SMP | C34: =C33*'Data Entry'!O26 -> 72.25
A35: kgs of powder | B35: kgs | C35: =C27*(1-C30)*C29/C14*(1+C33) -> 9.607655453
A36: kgs of BMP | B36: kgs | C36: =C22*(1-C31)*(C16+C17)/C13 -> 0.4770671515
A37: kgs of SMP | B37: kgs | C37: =(C35-C36) -> 9.130588302
A38: 1 tonne BMP requires | B38: litres milk | C38: =C19/C36*1000/C$18 -> 203570.1004 | D38: =ROUND(C38/100,0)*100 -> 203600 | E38: Rounded
A39: 1 tonne SMP requires | B39: litres milk | C39: =C19/C37*1000/C$18 -> 10636.40203 | D39: =ROUND(C39/100,0)*100 -> 10600 | E39: Rounded

Sheet MCVE calc (hidden)
A2: Cheddar and whey yield calculator | F2: costs | I2: prices and MCVE | L2: Profit margin
A3: Composition of milk | B3: Fat | C3: ='Data Entry'!P9 -> 0.041 | E3: price | F3: cheddar | G3: ='Data Entry'!O18 -> 330 | I3: MCVE calculation | L3: ='Data Entry'!O50 -> 0
B4: Protein | C4: ='Data Entry'!P10 -> 0.0335 | F4: whey powder | G4: ='Data Entry'!O19 -> 341 | I4: price £t | J4: Mild Cheddar | K4: ='Data Entry'!O28 -> 2903 | L4: =K4*$L$3 -> 0
B5: Solids not fat | C5: ='Data Entry'!P11 -> 0.0877 | F5: whey butter | G5: ='Data Entry'!O15 -> 244 | J5: Whey powder | K5: ='Data Entry'!O29 -> 666 | L5: =K5*$L$3 -> 0
A6: Weight of milk | B6: kg/lit | C6: 1.02969 | J6: est. Whey butter | K6: ='Data Entry'!O30 -> 2650 | L6: =K6*$L$3 -> 0
A7: Composition of cheddar | B7: Fat | C7: 0.34 | I7: components | J7: Mild Cheddar | K7: =(K4-G3)*100/$D14 -> 28.27472527 | L7: =(L4)*100/$D14 -> 0
B8: Protein | C8: 0.254 | J8: Whey powder | K8: =(K5-G4)*100/$D34 -> 1.946107784 | L8: =(L5)*100/$D34 -> 0
B9: Other SNF | C9: 0.028 | J9: est. Whey butter | K9: =(K6-G5)*100/$D37 -> 1.173658537 | L9: =(L6)*100/$D37 -> 0
A10: Composition of Unsalted Butter | B10: Fat | C10: ='AMPE calc'!C8 -> 0.815
B11: Solids not fat | C11: 0.017 | I11: MCVE | K11: =SUM(K7:K9) -> 31.3944916 | L11: =SUM(L7:L9) -> 0
A12: Loss from cheese | B12: % | C12: ='Data Entry'!O41 -> 0.0075
A13: Casein to make 1 tonne cheese | B13: kgs | C13: =1000*C8*(1+C12) -> 255.905
A14: 1 tonne of cheddar requires | B14: litres milk | C14: =1000/((C3*0.88+C4*0.74)*1.09/SUM(C7:C9))/C6 -> 9104.457857 | D14: =ROUND(C14/100,0)*100 -> 9100 | E14: Rounded
A15: In 1 tonne cheese (kgs) | B15: Fat | C15: =1000*C7*(1+C12) -> 342.55
B16: Protein | C16: =C13 -> 255.905
B17: Other SNF | C17: =1000*C9 -> 28
A18: Losses from cheese make (kgs) | B18: Fat | C18: =C15*C$12 -> 2.569125
B19: Protein | C19: =C16*C$12 -> 1.9192875
B20: Other SNF | C20: =C17*C$12 -> 0.21
A21: Remaining in whey (kgs) | B21: Fat | C21: =C14*C6*C3-C15-C18 -> 39.24641262
B22: Protein | C22: =C14*C6*C4-C16-C19 -> 56.23048105
B23: Other SNF | C23: =C14*C6*(C5-C4)-C17-C20 -> 479.9024912
A24: Loss from whey | B24: % | C24: ='Data Entry'!O42 -> 0.01
A25: Losses from whey powder make (kgs) | B25: Fat | C25: =C21*C$24 -> 0.3924641262
B26: SNF | C26: =(C22+C23)*C$24 -> 5.361329722
B27: All solids | C27: =C31*C$24 -> 5.334255007
A28: Whey powder | B28: Fat | C28: 0.005
A29: Solids in whey powder (kgs) | B29: Fat | C29: =C30*C28 -> 2.653858213
B30: SNF | C30: =(C23+C22)-C26 -> 530.7716425
B31: All solids | C31: =C30+C29 -> 533.4255007
A32: Dry matter of whey powder | B32: % | C32: 0.98
A33: kgs of whey powder | B33: All solids | C33: =C31/C32 -> 544.3117354
A34: 1 tonne of whey requires | B34: litres milk | C34: =1000/C33*C14 -> 16726.55073 | D34: =ROUND(C34/100,0)*100 -> 16700 | E34: Rounded
A35: Used in whey butter (kgs) | B35: Fat | C35: =C21-C29-C25 -> 36.20009029
A36: Butter made from 1t cheese | B36: kgs | C36: =C35/C10 -> 44.41728869 | D36: currently no butter loss %
A37: 1 tonne of butter requires | B37: litres milk | C37: =1000/C36*C14 -> 204975.5427 | D37: =ROUND(C37/100,0)*100 -> 205000 | E37: Rounded
